Cogmind - Beta 15 @@@ ROGUE MODE // 2025.09.19 @ 14:52:20 Player: Blue Result: Destroyed by D-63 Destroyer with Heavy Rocket Launcher Performance ------------- Evolutions (5) 2500 Regions Visited (18) 3600 Robots Destroyed (51) 255 Value Destroyed (1132) 1132 Prototype IDs (49) 980 Alien Tech Used (0) 0 Bonus (1427) 1427 TOTAL SCORE: 9894 Bonus ------- Follower Combat Kills 127 Aligned with FarCom 300 Met Warlord at Base 500 MAIN.C Attacked Warlord 500 Cogmind --------- Core Integrity 0/1000 Matter 287/300 Energy 98/100 System Corruption 25% Temperature Cool (0) Movement Core (50) Location -4/Proximity Caves Parts ------- > --- POWER (2) -------- (None) > --- PROPULSION (4) --- (None) > --- UTILITY (8) ------ (None) > --- WEAPON (3) ------- (None) > --- INVENTORY (5) ---- Neutrino Core Advanced Terrain Scanner Launcher Loader Advanced ECM Suite Peak State ------------ > --- POWER ------------ Heavy Deuterium Engine Neutrino Core > --- PROPULSION ------- Flying Fortress v7 > --- UTILITY ---------- Large Storage Unit Advanced Weight Redist. System Enhanced Optical Array Advanced Sensor Array Improved Signal Interpreter Hacking Suite Hacking Suite System Shield > --- WEAPON ----------- Hardcell Cannon Precision Grenade Launcher Powered Hammer > --- INVENTORY -------- Fusion Compressor Light Antimatter Reactor Improved Cooling System Matter Compressor Advanced Terrain Scanner Launcher Loader Advanced ECM Suite Propulsion Shielding Improved Medium Armor Plating Advanced Shield Generator Long-range Proton Cannon Long-range Proton Cannon Mini Assault Cannon Precision Grenade Launcher [Rating: 92] Favorites ----------- Power Heavy Deuterium Engine Engine Heavy Deuterium Engine Power Core Micro Nuclear Core Reactor Light Antimatter Reactor Propulsion Flying Fortress v7 Wheel Compact Wheel Flight Unit Flying Fortress v7 Utility Large Storage Unit Device Advanced Weight Redist. System Storage Large Storage Unit Processor Improved Signal Interpreter Hackware Hacking Suite Protection Utility Shielding Weapon Powered Hammer Energy Gun Backup Laser III Energy Cannon Advanced Beam Cannon Ballistic Gun Improved Assault Rifle Ballistic Cannon Mini Assault Cannon Launcher Precision Grenade Launcher Impact Weapon Powered Hammer Build | -11 -10 -10 -9 -9 -9 -8 -8 -7 -7 -7 -6 -5 -5 -5 -5 -5 -5 -4 ------- Run | Yrd Mat Min Mat Min Exi Min Mat Fac Low Low Fac Fac Was Fac Upp Upp War Pro Slots Evolved 10 | . . . 2 . . . 2 2 . . 2 2 . . . . . . Power 1 | . . . . . . . . . . . . 1 . . . . . . Propulsion 2 | . . . . . . . 2 . . . . . . . . . . . Utility 6 | . . . 2 . . . . 2 . . 1 1 . . . . . . Weapon 1 | . . . . . . . . . . . 1 . . . . . . . Parts Attached 70 | 7 2 . 16 3 . 3 4 14 1 . 6 8 . 1 2 2 1 . Power 14 | 2 . . 2 1 . . . 3 . . . 4 . . 1 1 . . Engine 9 | 2 . . 2 1 . . . 1 . . . 3 . . . . . . Core 4 | . . . . . . . . 2 . . . 1 . . 1 . . . Reactor 1 | . . . . . . . . . . . . . . . . 1 . . Propulsion 8 | 2 . . 1 2 . 2 1 . . . . . . . . . . . Treads . | . . . . . . . . . . . . . . . . . . . Leg . | . . . . . . . . . . . . . . . . . . . Wheel 7 | 2 . . 1 2 . 2 . . . . . . . . . . . . Hover . | . . . . . . . . . . . . . . . . . . . Flight 1 | . . . . . . . 1 . . . . . . . . . . . Utility 26 | 1 2 . 7 . . . 2 4 1 . 5 3 . . . 1 . . Device 10 | . . . 2 . . . 1 2 . . 3 1 . . . 1 . . Storage 3 | 1 1 . 1 . . . . . . . . . . . . . . . Processor 2 | . . . . . . . . . . . 1 1 . . . . . . Hackware 4 | . . . 1 . . . . 2 . . . 1 . . . . . . Protection 7 | . 1 . 3 . . . 1 . 1 . 1 . . . . . . . Artifact . | . . . . . . . . . . . . . . . . . . . Weapon 22 | 2 . . 6 . . 1 1 7 . . 1 1 . 1 1 . 1 . Energy Gun 6 | 2 . . 1 . . . . 2 . . . . . . . . 1 . Energy Cannon 3 | . . . 2 . . . . . . . . 1 . . . . . . Ballistic Gun 4 | . . . 2 . . . 1 1 . . . . . . . . . . Ballistic Cannon 3 | . . . . . . . . 2 . . . . . . 1 . . . Launcher 3 | . . . . . . 1 . 1 . . . . . 1 . . . . Special Weapon . | . . . . . . . . . . . . . . . . . . . Impact Weapon 3 | . . . 1 . . . . 1 . . 1 . . . . . . . Slashing Weapon . | . . . . . . . . . . . . . . . . . . . Piercing Weapon . | . . . . . . . . . . . . . . . . . . . Special Melee Weapon . | . . . . . . . . . . . . . . . . . . . Unidentified Prototypes 10 | . . . 3 . . . 1 5 . . . . . . . . 1 . Parts Lost 12 | . . . 1 3 . . . . . . . . . 2 . . 6 . Power 3 | . . . . . . . . . . . . . . 2 . . 1 . Propulsion 3 | . . . 1 1 . . . . . . . . . . . . 1 . Utility 6 | . . . . 2 . . . . . . . . . . . . 4 . Weapon . | . . . . . . . . . . . . . . . . . . . Highest Loss Streak 6 | . . . 1 3 . . . . . . . . . 2 . . 6 . To Critical Strikes . | . . . . . . . . . . . . . . . . . . . Average Backups 12 | . 4 7 10 13 13 12 13 14 15 15 14 13 14 14 13 13 13 4 Power 1 | . 1 2 3 3 2 2 2 2 2 2 2 2 2 2 1 1 1 1 Propulsion . | . . . . . 1 1 . . . . . . . . . . . . Utility 6 | . 2 4 4 6 5 5 6 6 7 8 7 7 8 8 8 7 6 3 Weapon 4 | . . 1 3 4 4 4 4 5 5 5 4 4 4 4 3 5 5 . Tool/Special . | . . . . . . . . . . . . . . . . . . . Unused Backups 32 | . . . 1 . 2 . . 12 1 . 3 4 . 1 1 1 4 2 Power 6 | . . . . . 1 . . 5 . . . . . . . . . . Propulsion 1 | . . . . . 1 . . . . . . . . . . . . . Utility 14 | . . . 1 . . . . 2 . . 2 2 . 1 . 1 3 2 Weapon 11 | . . . . . . . . 5 1 . 1 2 . . 1 . 1 . Tool/Special . | . . . . . . . . . . . . . . . . . . . Average Slot Usage (%) 79 | . 96 100 97 96 100 100 72 75 76 76 72 81 82 82 76 65 65 . Engine 7 | . 14 14 11 11 11 11 9 1 7 7 6 10 11 11 5 5 4 . Wheel 6 | . 28 28 20 19 22 22 . . . . . . . . . . . . Flight 3 | . . . . . . . 8 7 7 7 6 5 5 5 5 5 4 . Device 11 | . . . 8 11 11 11 9 17 15 15 7 11 11 11 11 16 15 . Storage 7 | . 14 14 11 11 11 11 9 7 7 7 6 5 5 5 5 5 4 . Processor 5 | . . . . . . . . . . . 5 10 11 11 11 11 10 . Hackware 8 | . . . 1 3 . . . 10 15 15 13 17 17 17 17 11 9 . Protection 9 | . 10 14 23 18 22 22 18 9 7 7 12 . . . . . . . Energy Gun 2 | . 28 28 1 . . . . 3 7 7 . . . . . . 5 . Energy Cannon 4 | . . . 17 11 11 . . . . . . 4 5 5 3 . . . Ballistic Gun 3 | . . . 2 11 11 11 8 7 . . . . . . . . . . Ballistic Cannon 1 | . . . . . . . . 1 7 7 6 5 5 4 1 . . . Impact Weapon 2 | . . . . . . . 5 2 . . 5 5 5 5 5 . . . Peak Build Rating 92 | 6 7 7 21 21 21 19 50 65 65 64 74 88 87 88 92 87 85 2 Average Rating 53 | 4 6 7 15 18 19 19 47 60 64 64 70 86 87 87 84 77 72 2 On Entrance 43 | . 6 7 7 21 18 21 19 49 65 64 64 74 87 87 80 87 77 2 Naked Turns 172 | . . . . . . . . . . . . . . . . . 50 122 Heaviest Build 59 | 14 20 20 41 39 37 36 36 45 43 43 49 58 57 59 59 59 56 . Greatest Support 59 | 26 26 26 26 32 32 32 50 50 50 50 59 59 59 59 59 59 59 3 Greatest Overweight (x) 2 | 1 . . 2 2 1 1 . . . . . . . . . . 2 . Average Overweight (x) . | . . . . 1 1 1 . . . . . . . . . . . . Largest Inventory Capacity 15 | 8 10 10 15 15 15 15 15 15 15 15 15 15 15 15 15 15 15 5 Average Capacity 14 | 7 9 10 13 15 15 15 15 15 15 15 15 15 15 15 15 15 14 5 Most Carried 15 | 1 7 7 14 15 15 15 15 15 15 15 15 15 15 15 15 15 15 5 Average Carried 13 | . 4 7 10 13 14 15 13 14 15 15 14 14 15 15 14 14 14 5 Final Capacity 15 | 8 10 10 15 15 15 15 15 15 15 15 15 15 15 15 15 15 5 5 Final Carried 15 | 1 7 7 14 15 15 15 15 15 15 15 15 15 15 15 15 15 5 5 Class Distribution -------------------- 47% | Hacker-Scout 41% | Mutant 6% | Hacker-Mutant 4% | Scavenger-Mutant Dominant Class ---------------- Mutant | -10/Materials Mutant | -10/Mines Mutant | -9/Materials Mutant | -9/Mines Mutant | -9/Exiles Mutant | -8/Mines Mutant | -8/Materials Mutant | -7/Factory Hacker-Mutant | -7/Lower Caves Hacker-Mutant | -7/Lower Caves Hacker-Scout | -6/Factory Hacker-Scout | -5/Factory Hacker-Scout | -5/Waste Hacker-Scout | -5/Factory Hacker-Scout | -5/Upper Caves Hacker-Scout | -5/Upper Caves Hacker-Scout | -5/Warlord Mutant | -4/Proximity Caves Resources | -11 -10 -10 -9 -9 -9 -8 -8 -7 -7 -7 -6 -5 -5 -5 -5 -5 -5 -4 ----------- Run | Yrd Mat Min Mat Min Exi Min Mat Fac Low Low Fac Fac Was Fac Upp Upp War Pro Matter Collected 2106 | 256 34 . 249 103 . 44 221 199 49 . 284 . 132 . 258 172 105 . Remotely 89 | . . . . . . . . . . . 89 . . . . . . . Salvage Created 1876 | . 48 . 989 306 . 75 57 130 . . 89 40 . 60 70 12 . . Parts 102 | . 2 . 56 13 . 11 4 6 . . 4 1 . 2 3 . . . Haulers Intercepted 8 | . 1 . 3 . . . 1 2 . . 1 . . . . . . . Recyclers Shooed . | . . . . . . . . . . . . . . . . . . . Parts Field Recycled . | . . . . . . . . . . . . . . . . . . . Retrieved Matter . | . . . . . . . . . . . . . . . . . . . Parts Self-Destructed 1 | . . . . . . . . . . . . . . . . 1 . . Prevented 4 | . . . . . . . . . . . . . . . 3 1 . . Kills | -11 -10 -10 -9 -9 -9 -8 -8 -7 -7 -7 -6 -5 -5 -5 -5 -5 -5 -4 ------- Run | Yrd Mat Min Mat Min Exi Min Mat Fac Low Low Fac Fac Was Fac Upp Upp War Pro Combat Hostiles Destroyed 31 | . . . 14 3 . 7 . 1 . . . . . 4 1 1 . . Guns 3 | . . . . 1 . 1 . 1 . . . . . . . . . . Cannons 17 | . . . 14 2 . . . . . . . . . . 1 . . . AOE 11 | . . . . . . 6 . . . . . . . 4 . 1 . . Classes Destroyed 9 | . 1 . 7 1 . . . . . . . . . . . . . . Worker 5 | . . . 2 1 . 2 . . . . . . . . . . . . Hauler 8 | . 1 . 3 . . . 1 2 . . 1 . . . . . . . Recycler 3 | . . . 2 1 . . . . . . . . . . . . . . Operator 1 | . . . 1 . . . . . . . . . . . . . . . Watcher 3 | . . . 2 . . . . . . . . 1 . . . . . . Swarmer 12 | . . . 2 . . 7 . . . . . . . 3 . . . . Grunt 13 | . . . 10 1 . . . 1 . . . . . . 1 . . . Duelist 2 | . . . . 2 . . . . . . . . . . . . . . Sentry 4 | . . . 2 . . . . . . . . . . 1 . 1 . . Best Kill Streak 6 | . 1 . 6 3 . 5 1 1 . . 1 1 . 4 1 1 . . Combat Bots Only 5 | . . . 5 2 . 4 . 1 . . . . . 4 1 1 . . Max Kills in Single Turn 4 | . 1 . 1 1 . 4 1 1 . . 1 1 . 2 1 1 . . Gunslinging . | . . . . . . . . . . . . . . . . . . . Exploded 3 | . . . . . . 3 . . . . . . . 2 . 1 . . Melee . | . . . . . . . . . . . . . . . . . . . Uniques/NPCs Destroyed . | . . . . . . . . . . . . . . . . . . . Combat | -11 -10 -10 -9 -9 -9 -8 -8 -7 -7 -7 -6 -5 -5 -5 -5 -5 -5 -4 -------- Run | Yrd Mat Min Mat Min Exi Min Mat Fac Low Low Fac Fac Was Fac Upp Upp War Pro Hostile Shots Fired 212 | . . . 50 15 . 16 6 5 . . 26 . . 41 4 8 14 27 Missed 66 | . . . 13 1 . 8 3 3 . . 8 . . 15 2 1 6 6 Hits 146 | . . . 37 14 . 8 3 2 . . 18 . . 26 2 7 8 21 Melee 5 | . . . . 5 . . . . . . . . . . . . . . Projectile 141 | . . . 37 9 . 8 3 2 . . 18 . . 26 2 7 8 21 AOE 8 | . . . . . . . . . . . . . . . . . . 8 Critical Strikes 3 | . . . . . . . . . . . . . . 1 . . 1 1 Part Disruptions 1 | . . . . . . . . . . . . . . . . . 1 . Damage Taken 3658 | . . . 412 255 . 86 49 19 . . 283 . . 591 40 173 1074 676 Core 1210 | . . . 91 10 . 27 18 . . . 63 . . 54 . . 271 676 Absorbed by Shields 8 | . . . . . . . . 8 . . . . . . . . . . Redirected to Shielding 59 | . . . 14 11 . 3 . . . . 31 . . . . . . . Regen/Repaired (Parts) 27 | . . . . . . . . . . . . . . . . . 27 . Core Remaining (%) 92 | 100 . 100 . . . 68 96 . . 100 92 . . . . . . . Volleys Fired 136 | . 7 . 48 15 . 7 16 11 . . 11 2 . 9 6 4 . . Largest 2 | . 2 . 2 2 . 2 2 2 . . 1 1 . 2 1 2 . . Hottest 136 | . 90 . 136 91 . 53 48 107 . . 40 81 . 117 81 72 . . Shots Fired 229 | . 14 . 95 29 . 9 26 16 . . 11 2 . 13 6 8 . . Gun 75 | . 14 . 3 14 . 6 26 12 . . . . . . . . . . Cannon 136 | . . . 92 15 . . . 4 . . 11 2 . 6 6 . . . Launcher 18 | . . . . . . 3 . . . . . . . 7 . 8 . . Special . | . . . . . . . . . . . . . . . . . . . Kinetic 71 | . . . 3 14 . 6 26 11 . . 11 . . . . . . . Thermal 119 | . 7 . 92 15 . . . 5 . . . . . . . . . . Explosive 18 | . . . . . . 3 . . . . . . . 7 . 8 . . Electromagnetic 21 | . 7 . . . . . . . . . . 2 . 6 6 . . . Robot Hit Streak 10 | . 3 . 10 10 . 9 5 8 . . . 3 . 4 2 5 . . Robot Miss Streak 4 | . 2 . 4 1 . 2 4 2 . . . . . 2 2 1 . . Penetration Max . | . . . . . . . . . . . . . . . . . . . Secondary Targets . | . . . . . . . . . . . . . . . . . . . Shots Hit Robots 137 | . 8 . 58 22 . 5 15 11 . . 2 1 . 7 3 5 . . Core Hits 70 | . 2 . 24 7 . 9 3 5 . . 1 . . 10 2 7 . . Critical Kills 1 | . . . 1 . . . . . . . . . . . . . . . Critical Parts Destroyed . | . . . . . . . . . . . . . . . . . . . Critical Strikes 2 | . 1 . 1 . . . . . . . . . . . . . . . Burn 1 | . 1 . . . . . . . . . . . . . . . . . Destroy 1 | . . . 1 . . . . . . . . . . . . . . . Melee Attacks 93 | . . . 2 . . . 7 4 . . 18 32 . 4 . . 26 . Impact 93 | . . . 2 . . . 7 4 . . 18 32 . 4 . . 26 . Slashing . | . . . . . . . . . . . . . . . . . . . Piercing . | . . . . . . . . . . . . . . . . . . . Sneak Attacks 3 | . . . 1 . . . . . . . 2 . . . . . . . Combat Hostiles . | . . . . . . . . . . . . . . . . . . . Follow-up Attacks . | . . . . . . . . . . . . . . . . . . . Damage Inflicted 3664 | . 106 . 1309 394 . 364 241 234 . . 167 60 . 529 111 149 . . Guns 733 | . 106 . 31 149 . 43 241 163 . . . . . . . . . . Cannons 1762 | . . . 1186 245 . . . 71 . . . 60 . 89 111 . . . Explosions 910 | . . . . . . 321 . . . . . . . 440 . 149 . . Melee 259 | . . . 92 . . . . . . . 167 . . . . . . . Ramming . | . . . . . . . . . . . . . . . . . . . Kinetic 606 | . . . 31 149 . 43 241 142 . . . . . . . . . . Thermal 1599 | . 76 . 1186 245 . . . 92 . . . . . . . . . . Explosive 910 | . . . . . . 321 . . . . . . . 440 . 149 . . Electromagnetic 290 | . 30 . . . . . . . . . . 60 . 89 111 . . . Impact 259 | . . . 92 . . . . . . . 167 . . . . . . . Slashing . | . . . . . . . . . . . . . . . . . . . Piercing . | . . . . . . . . . . . . . . . . . . . Highest Corruption 25 | . . . 2 2 2 2 . . . . . . . . . . 25 25 Average Corruption 6 | . . . 2 2 2 2 . . . . . . . . . . 24 25 Corruption Purged . | . . . . . . . . . . . . . . . . . . . Corruption Blocked . | . . . . . . . . . . . . . . . . . . . Effects 34 | . . . 2 4 6 3 . . . . . . . . . . 9 10 Message Errors 9 | . . . 1 . 2 1 . . . . . . . . . . 4 1 Matter Fused 6 | . . . . 2 1 1 . . . . . . . . . . . 2 Heat Flow Errors 6 | . . . . 1 2 . . . . . . . . . . . 1 2 Energy Discharges 3 | . . . 1 . 1 . . . . . . . . . . . 1 . Data Loss (minor) 3 | . . . . . . 1 . . . . . . . . . . 1 1 Data Loss (major) 1 | . . . . . . . . . . . . . . . . . 1 . Alerts 1 | . . . . . . . . . . . . . . . . . . 1 Misdirections 4 | . . . . . . . . . . . . . . . . . 1 3 Weapon Failures 1 | . . . . 1 . . . . . . . . . . . . . . Overload Shots . | . . . . . . . . . . . . . . . . . . . Overflow Damage 129 | . . . 63 . . 5 . . . . . 25 . 36 . . . . Projectiles 26 | . . . 1 . . . . . . . . 25 . . . . . . Explosions 41 | . . . . . . 5 . . . . . . . 36 . . . . Melee 62 | . . . 62 . . . . . . . . . . . . . . . Knockbacks 1 | . . . 1 . . . . . . . . . . . . . . . Impact 1 | . . . 1 . . . . . . . . . . . . . . . Kinetic . | . . . . . . . . . . . . . . . . . . . Secondary . | . . . . . . . . . . . . . . . . . . . Self-Inflicted Damage 69 | . . . . . . 24 . . . . . . . 45 . . . . Shots 6 | . . . . . . 2 . . . . . . . 4 . . . . Rammed . | . . . . . . . . . . . . . . . . . . . Targets Rammed . | . . . . . . . . . . . . . . . . . . . Kicked . | . . . . . . . . . . . . . . . . . . . Crushed . | . . . . . . . . . . . . . . . . . . . Highest Temperature 578 | . 120 . 258 176 142 . 1 26 . . . 43 . 221 187 102 578 206 Average Temperature 84 | . 48 . 81 87 87 . 1 8 . . . 24 . 87 96 52 243 95 Received Heat Transfer 498 | . . . 135 54 . . 27 12 . . 63 . . 81 18 36 45 27 Effects 2 | . . . . . . . . . . . . . . . . . 2 . Energy Bleed 1 | . . . . . . . . . . . . . . . . . 1 . Damage (minor) 1 | . . . . . . . . . . . . . . . . . 1 . Siege Activations . | . . . . . . . . . . . . . . . . . . . Martial Activations . | . . . . . . . . . . . . . . . . . . . Shielding Activations . | . . . . . . . . . . . . . . . . . . . Robots Disrupted . | . . . . . . . . . . . . . . . . . . . Combat Hostiles . | . . . . . . . . . . . . . . . . . . . Robots Corrupted 1 | . . . 1 . . . . . . . . . . . . . . . Combat Hostiles . | . . . . . . . . . . . . . . . . . . . Parts Fried 1 | . . . 1 . . . . . . . . . . . . . . . Impact Corruptions 2 | . . . 2 . . . . . . . . . . . . . . . Robots Melted . | . . . . . . . . . . . . . . . . . . . Combat Hostiles . | . . . . . . . . . . . . . . . . . . . Parts Melted 2 | . . . 2 . . . . . . . . . . . . . . . Heat Transferred 3034 | . 296 . 2146 444 . . . 148 . . . . . . . . . . Parts Sabotaged . | . . . . . . . . . . . . . . . . . . . Parts Stolen . | . . . . . . . . . . . . . . . . . . . Parts Stripped . | . . . . . . . . . . . . . . . . . . . Power Chain Reactions . | . . . . . . . . . . . . . . . . . . . Alert | -11 -10 -10 -9 -9 -9 -8 -8 -7 -7 -7 -6 -5 -5 -5 -5 -5 -5 -4 ------- Run | Yrd Mat Min Mat Min Exi Min Mat Fac Low Low Fac Fac Was Fac Upp Upp War Pro Maximum Alert Level 1 | . . . 1 . . . . . . . . . . . . . . . Low Security (%) 93 | 100 100 100 64 100 . 100 100 100 . . 100 100 100 100 . . . . Level 1 6 | . . . 35 . . . . . . . . . . . . . . . Level 2 . | . . . . . . . . . . . . . . . . . . . Level 3 . | . . . . . . . . . . . . . . . . . . . Level 4 . | . . . . . . . . . . . . . . . . . . . Level 5 . | . . . . . . . . . . . . . . . . . . . High Security . | . . . . . . . . . . . . . . . . . . . Max Security . | . . . . . . . . . . . . . . . . . . . Peak Influence 312 | . 15 1 312 105 . 178 53 20 . . 126 57 . 118 . . . . Initial 105 | . . 1 . 105 . . 53 . . . . 57 . . . . . . Average 41 | . 1 . 154 28 . 133 10 1 . . 22 8 . 6 . . . . Influence Increases 1656 | . 22 . 642 117 . 198 14 44 . . 237 56 . 166 20 20 90 30 Destroy 0b10 Robot/C 760 | . . . 420 60 . 140 . 20 . . . . . 80 20 20 . . Destroy 0b10 Robot/NC 105 | . 5 . 50 15 . 10 5 10 . . 5 5 . . . . . . Destroy Leader 162 | . 2 . 100 20 . 20 2 4 . . 2 2 . 10 . . . . Allied During Kill 11 | . . . 11 . . . . . . . . . . . . . . . Successful Hack 49 | . . . 14 7 . . . 7 . . . 11 . 10 . . . . Disable Machine 60 | . 15 . 30 15 . . . . . . . . . . . . . . Destroy Structure 164 | . . . 2 . . 28 7 3 . . 20 38 . 66 . . . . Partial Spotted 15 | . . . 15 . . . . . . . . . . . . . . . Lose Combat Pursuer 330 | . . . . . . . . . . . 210 . . . . . 90 30 Influence Decreases 1636 | . 17 5 372 387 . 60 150 46 . . 119 172 2 58 128 20 6 94 Entered New Map 444 | . . 4 . 165 . . 85 2 . . . 61 2 . 41 . . 84 Time Decay 1122 | . 17 1 342 202 . 60 65 44 . . 119 111 . 38 87 20 6 10 Lost Part 50 | . . . 10 20 . . . . . . . . . 20 . . . . Lost Ally 20 | . . . 20 . . . . . . . . . . . . . . . Squads Dispatched 20 | . 1 1 4 . . . 3 8 . . 1 1 . 1 . . . . Investigation 6 | . 1 . 2 . . . . 3 . . . . . . . . . . Extermination 3 | . . . . . . . . 1 . . . 1 . 1 . . . . Reinforcement 3 | . . . 2 . . . . 1 . . . . . . . . . . Assault 3 | . . 1 . . . . 2 . . . . . . . . . . . Garrison 5 | . . . . . . . 1 3 . . 1 . . . . . . . Intercept . | . . . . . . . . . . . . . . . . . . . Searches Triggered . | . . . . . . . . . . . . . . . . . . . Construction Impeded . | . . . . . . . . . . . . . . . . . . . Haulers Reinforced 1 | . . . . . . . . 1 . . . . . . . . . . Active Scanning Responses . | . . . . . . . . . . . . . . . . . . . Cargo Convoy Interrupts . | . . . . . . . . . . . . . . . . . . . Stealth | -11 -10 -10 -9 -9 -9 -8 -8 -7 -7 -7 -6 -5 -5 -5 -5 -5 -5 -4 --------- Run | Yrd Mat Min Mat Min Exi Min Mat Fac Low Low Fac Fac Was Fac Upp Upp War Pro Distress Signals 12 | . . . 4 . . . 2 . . . 3 . . . . . 1 2 Communications Jammed . | . . . . . . . . . . . . . . . . . . . Distress Signals . | . . . . . . . . . . . . . . . . . . . Times Spotted 106 | . 1 . 22 3 . 7 4 2 . . 17 1 . 10 1 1 19 18 Peak Tracking Total 14 | . 1 . 6 2 . 4 3 2 . . 10 1 . 6 1 1 14 11 Tactical Retreats 10 | . . . . . . . . . . . 6 . . . . . 3 1 Traps | -11 -10 -10 -9 -9 -9 -8 -8 -7 -7 -7 -6 -5 -5 -5 -5 -5 -5 -4 ------- Run | Yrd Mat Min Mat Min Exi Min Mat Fac Low Low Fac Fac Was Fac Upp Upp War Pro Traps Triggered 6 | . 1 . . . . . . 1 . . . 1 . 1 . . 2 . Indirectly . | . . . . . . . . . . . . . . . . . . . Trap Hack Attempts . | . . . . . . . . . . . . . . . . . . . Triggered . | . . . . . . . . . . . . . . . . . . . Disarmed . | . . . . . . . . . . . . . . . . . . . Reprogrammed . | . . . . . . . . . . . . . . . . . . . Reused . | . . . . . . . . . . . . . . . . . . . Traps Extracted . | . . . . . . . . . . . . . . . . . . . Installed . | . . . . . . . . . . . . . . . . . . . Triggered . | . . . . . . . . . . . . . . . . . . . Machines | -11 -10 -10 -9 -9 -9 -8 -8 -7 -7 -7 -6 -5 -5 -5 -5 -5 -5 -4 ---------- Run | Yrd Mat Min Mat Min Exi Min Mat Fac Low Low Fac Fac Was Fac Upp Upp War Pro Machines Disabled 4 | . 1 . 2 1 . . . . . . . . . . . . . . Max in Single Turn 1 | . 1 . 1 1 . . . . . . . . . . . . . . Garrison Access 2 | . . . . . . . 1 . . . 1 . . . . . . . Machines Repaired . | . . . . . . . . . . . . . . . . . . . Machines Dismantled . | . . . . . . . . . . . . . . . . . . . Machines Sabotaged . | . . . . . . . . . . . . . . . . . . . Overloaded Fab Kills . | . . . . . . . . . . . . . . . . . . . Hacking | -11 -10 -10 -9 -9 -9 -8 -8 -7 -7 -7 -6 -5 -5 -5 -5 -5 -5 -4 --------- Run | Yrd Mat Min Mat Min Exi Min Mat Fac Low Low Fac Fac Was Fac Upp Upp War Pro Machines Accessed 38 | . . . 7 1 1 . 2 5 1 . 3 4 . 2 1 . 11 . Terminals 17 | . . . 5 1 . . 1 3 . . 1 4 . 2 . . . . Fabricators . | . . . . . . . . . . . . . . . . . . . Repair Stations 1 | . . . 1 . . . . . . . . . . . . . . . Recycling Units 1 | . . . . . . . 1 . . . . . . . . . . . Scanalyzers 1 | . . . 1 . . . . . . . . . . . . . . . Garrison Access 4 | . . . . . . . . 2 . . 2 . . . . . . . Total Hacks 71 | . . . 17 1 1 . 4 9 1 . 5 10 . 3 1 . 19 . Successful 41 | . . . 6 1 1 . 1 2 1 . 1 6 . 2 1 . 19 . Failed 30 | . . . 11 . . . 3 7 . . 4 4 . 1 . . . . Catastrophic 7 | . . . 2 . . . . 3 . . 2 . . . . . . . Database Lockouts . | . . . . . . . . . . . . . . . . . . . Manual 16 | . . . 6 . 1 . 4 3 . . . 2 . . . . . . Terminals 33 | . . . 12 1 . . 1 4 . . 2 10 . 3 . . . . Fabricators . | . . . . . . . . . . . . . . . . . . . Repair Stations 1 | . . . 1 . . . . . . . . . . . . . . . Recycling Units 3 | . . . . . . . 3 . . . . . . . . . . . Scanalyzers 4 | . . . 4 . . . . . . . . . . . . . . . Garrison Access 8 | . . . . . . . . 5 . . 3 . . . . . . . Terminal Hacks 35 | . . . 2 1 1 . . 2 1 . . 6 . 2 1 . 19 . Record 15 | . . . . . . . . 1 . . . 3 . . . . 11 . Part Schematic 1 | . . . . . . . . . . . . 1 . . . . . . Prototype ID Bank 8 | . . . 1 . . . . . . . . 1 . . . . 6 . Open Door 4 | . . . . . . . . . 1 . . . . . 1 . 2 . Level Access Points 1 | . . . . 1 . . . . . . . . . . . . . . Branch Access Points 4 | . . . 1 . . . . 1 . . . 1 . 1 . . . . Dispatch Records 1 | . . . . . . . . . . . . . . 1 . . . . Proto ID Catalog 1 | . . . . . 1 . . . . . . . . . . . . . Fabricator Hacks . | . . . . . . . . . . . . . . . . . . . Repair Station Hacks . | . . . . . . . . . . . . . . . . . . . Recycling Unit Hacks . | . . . . . . . . . . . . . . . . . . . Scanalyzer 4 | . . . 4 . . . . . . . . . . . . . . . Insert Component 2 | . . . 2 . . . . . . . . . . . . . . . Analyze 2 | . . . 2 . . . . . . . . . . . . . . . Garrison Access Hacks 1 | . . . . . . . . . . . 1 . . . . . . . Seal Access 1 | . . . . . . . . . . . 1 . . . . . . . Unauthorized Hacks 1 | . . . . . . . 1 . . . . . . . . . . . Terminals . | . . . . . . . . . . . . . . . . . . . Fabricators . | . . . . . . . . . . . . . . . . . . . Repair Stations . | . . . . . . . . . . . . . . . . . . . Recycling Units 1 | . . . . . . . 1 . . . . . . . . . . . Reject 1 | . . . . . . . 1 . . . . . . . . . . . Scanalyzers . | . . . . . . . . . . . . . . . . . . . Garrison Access . | . . . . . . . . . . . . . . . . . . . Data Cores Recovered . | . . . . . . . . . . . . . . . . . . . Used . | . . . . . . . . . . . . . . . . . . . Hacking Detections 21 | . . . 7 1 . . 1 4 . . 2 4 . 2 . . . . Full Trace Events 5 | . . . 3 . . . . 2 . . . . . . . . . . Feedback Events . | . . . . . . . . . . . . . . . . . . . Feedback Blocked . | . . . . . . . . . . . . . . . . . . . Robot Schematics Acquired . | . . . . . . . . . . . . . . . . . . . Robots Built . | . . . . . . . . . . . . . . . . . . . Authchips . | . . . . . . . . . . . . . . . . . . . Time . | . . . . . . . . . . . . . . . . . . . Total Robot Build Rating . | . . . . . . . . . . . . . . . . . . . Part Schematics Acquired 3 | . . . 2 . . . . . . . . 1 . . . . . . Parts Built . | . . . . . . . . . . . . . . . . . . . Authchips . | . . . . . . . . . . . . . . . . . . . Time . | . . . . . . . . . . . . . . . . . . . Total Part Build Rating . | . . . . . . . . . . . . . . . . . . . Parts Repaired . | . . . . . . . . . . . . . . . . . . . Time . | . . . . . . . . . . . . . . . . . . . Parts Recycled . | . . . . . . . . . . . . . . . . . . . Recycled Matter . | . . . . . . . . . . . . . . . . . . . Retrieved Matter . | . . . . . . . . . . . . . . . . . . . Retrieved Components . | . . . . . . . . . . . . . . . . . . . Parts Scanalyzed 2 | . . . 2 . . . . . . . . . . . . . . . Part Schematics Acquired 2 | . . . 2 . . . . . . . . . . . . . . . Parts Damaged . | . . . . . . . . . . . . . . . . . . . Bothacking | -11 -10 -10 -9 -9 -9 -8 -8 -7 -7 -7 -6 -5 -5 -5 -5 -5 -5 -4 ------------ Run | Yrd Mat Min Mat Min Exi Min Mat Fac Low Low Fac Fac Was Fac Upp Upp War Pro Used RIF Installer . | . . . . . . . . . . . . . . . . . . . Robots Hacked . | . . . . . . . . . . . . . . . . . . . Non-combat . | . . . . . . . . . . . . . . . . . . . Combat . | . . . . . . . . . . . . . . . . . . . Robot Hacks Applied . | . . . . . . . . . . . . . . . . . . . Relay Couplers Released 1 | . . . . . . . 1 . . . . . . . . . . . Machine Destruction 1 | . . . . . . . 1 . . . . . . . . . . . Fabnet Peak Effective % . | . . . . . . . . . . . . . . . . . . . Robots Rewired . | . . . . . . . . . . . . . . . . . . . Allies Hacked . | . . . . . . . . . . . . . . . . . . . Hacks Repelled . | . . . . . . . . . . . . . . . . . . . Allies | -11 -10 -10 -9 -9 -9 -8 -8 -7 -7 -7 -6 -5 -5 -5 -5 -5 -5 -4 -------- Run | Yrd Mat Min Mat Min Exi Min Mat Fac Low Low Fac Fac Was Fac Upp Upp War Pro Total Allies 2 | . . 1 . 1 . . . . . . . . . . . . . . Largest Group 1 | . . 1 1 1 1 . . . . . . . . . . . . . Highest-Rated Group 31 | . . 31 31 31 31 . . . . . . . . . . . . . Highest-Rated Ally 31 | . . 31 31 31 31 . . . . . . . . . . . . . Total Orders . | . . . . . . . . . . . . . . . . . . . Ally Attacks 16 | . . . 16 . . . . . . . . . . . . . . . Total Damage 228 | . . . 228 . . . . . . . . . . . . . . . Kills 7 | . . . 7 . . . . . . . . . . . . . . . Allies Corrupted . | . . . . . . . . . . . . . . . . . . . Allies Melted . | . . . . . . . . . . . . . . . . . . . Intel | -11 -10 -10 -9 -9 -9 -8 -8 -7 -7 -7 -6 -5 -5 -5 -5 -5 -5 -4 ------- Run | Yrd Mat Min Mat Min Exi Min Mat Fac Low Low Fac Fac Was Fac Upp Upp War Pro Active Infowar (turns) 3367 | . . . . . . . . . . . 476 679 129 381 339 241 1122 . Optics 2845 | . . . . . . . . . . . . 633 129 381 339 241 1122 . Sensors 2615 | . . . . . . . . . . . 476 556 . . 338 241 1004 . Terrain 634 | . . . . . . . . . . . . 123 129 381 1 . . . ECM 1238 | . . . . . . . . . . . . . . . . 235 1003 . Robot Analysis Total . | . . . . . . . . . . . . . . . . . . . Derelict Logs Recovered 10 | . . 1 . 3 . . . . . 1 . . . . 2 2 . 1 Drone Launches . | . . . . . . . . . . . . . . . . . . . Drone Recoveries . | . . . . . . . . . . . . . . . . . . . Exploration | -11 -10 -10 -9 -9 -9 -8 -8 -7 -7 -7 -6 -5 -5 -5 -5 -5 -5 -4 ------------- Run | Yrd Mat Min Mat Min Exi Min Mat Fac Low Low Fac Fac Was Fac Upp Upp War Pro Turns Passed 6760 | 49 141 94 770 617 360 135 331 509 139 33 519 679 129 381 339 241 1172 122 Spaces Moved 8398 | 43 125 101 487 489 311 107 354 858 271 54 620 736 257 379 623 440 1899 244 Core 414 | 3 . . . . . . . . . . . . . . . . 167 244 Treads . | . . . . . . . . . . . . . . . . . . . Legs . | . . . . . . . . . . . . . . . . . . . Wheels 1660 | 40 125 101 487 489 311 107 . . . . . . . . . . . . Hover . | . . . . . . . . . . . . . . . . . . . Flight 6324 | . . . . . . . 354 858 271 54 620 736 257 379 623 440 1732 . Fastest Speed 50 | 50 90 90 90 105 115 105 50 50 50 50 50 50 50 50 50 50 50 50 Average Speed 62 | 89 90 90 106 114 115 107 50 50 50 50 50 50 50 50 50 50 53 50 Slowest Speed 150 | 100 90 90 130 130 115 115 50 50 50 50 50 50 50 50 50 50 150 50 Overloaded Moves . | . . . . . . . . . . . . . . . . . . . Propulsion Burnouts . | . . . . . . . . . . . . . . . . . . . Robots Hopped 18 | . . . . . . . 2 7 . 7 . . . . . . 2 . Potential Cave-ins 18 | . . . . . . . . . . . . 12 . . . . 6 . Cave-ins Triggered 3 | . . . . . . . . . . . . . . . . . 3 . Exploration Rate (%) 42 | 3 30 18 46 93 66 20 22 22 44 7 20 17 90 14 91 66 94 47 Regions Visited 18 Branch Regions 10 Pre-discovered Areas 2 | . . . . . . . . . . . . . . . . 1 . 1 Known Exits Taken 8 | . . . 1 . . 1 1 1 . . 1 . . 1 1 1 . . Unknown Exits Taken 8 | 1 1 1 . 1 1 . . . 1 1 . . . . . . 1 . Scrap Searched 9 | . . . . 1 . . . . 1 . . . . . 5 2 . . Spaces Dug 76 | . . . 1 . . . 7 3 . . 20 32 . 4 . . 9 . Terrain Destroyed 165 | . . . 1 . . 29 7 3 . . 20 32 . 47 . 17 9 . Melee 71 | . . . 1 . . . 7 3 . . 15 32 . 4 . . 9 . Projectile 5 | . . . . . . . . . . . 5 . . . . . . . AOE 89 | . . . . . . 29 . . . . . . . 43 . 17 . . Terrain Rammed . | . . . . . . . . . . . . . . . . . . . Walls Destroyed . | . . . . . . . . . . . . . . . . . . . Machines Disabled . | . . . . . . . . . . . . . . . . . . . Actions | -11 -10 -10 -9 -9 -9 -8 -8 -7 -7 -7 -6 -5 -5 -5 -5 -5 -5 -4 --------- Run | Yrd Mat Min Mat Min Exi Min Mat Fac Low Low Fac Fac Was Fac Upp Upp War Pro Total 9530 | 49 138 103 637 515 315 118 475 923 273 52 791 987 256 550 643 454 2007 244 Wait 721 | . . 3 67 3 . . 84 1 . 6 115 200 . 156 7 . 79 . Move 8347 | 42 124 100 486 488 310 106 349 844 270 39 619 736 256 378 622 439 1895 244 Hop 16 | . . . . . . . 2 6 . 7 . . . . . . 1 . Pick Up 61 | . 5 . 12 2 1 . 5 19 1 . 8 5 . 1 2 . . . Fast Attach 17 | 6 1 . 1 1 . . . . . . 3 2 . . 1 1 1 . Attach 15 | . . . 2 2 . . 1 2 . . 3 1 . . 1 2 1 . Detach 8 | . . . . . . . . . . . 2 . . . . 5 1 . Swap 54 | 1 1 . 14 2 . 3 6 16 1 . 1 5 . 1 2 1 . . Drop 60 | . . . 5 . 4 2 5 20 1 . 11 4 . 1 2 2 3 . Fire 136 | . 7 . 48 15 . 7 16 11 . . 11 2 . 9 6 4 . . Melee 93 | . . . 2 . . . 7 4 . . 18 32 . 4 . . 26 . Ram . | . . . . . . . . . . . . . . . . . . . Kick . | . . . . . . . . . . . . . . . . . . . Crush . | . . . . . . . . . . . . . . . . . . . Escape Stasis . | . . . . . . . . . . . . . . . . . . . Rewire 2 | . . . . 2 . . . . . . . . . . . . . . Trap . | . . . . . . . . . . . . . . . . . . . Miscellaneous . | . . . . . . . . . . . . . . . . . . . Route ------- -11/Scrapyard -10/Materials (discovered 2 exits: *Mat / [*Min]) -10/Mines -9/Materials (discovered 2 exits: *Min x2) -9/Mines (discovered 4 exits: *Mat x2 / *Exi / [*Zio]) -9/Exiles -8/Mines -8/Materials (discovered 2 exits: *Fac x2) -7/Factory (discovered 3 exits: *Fac / *Low x2) -7/Lower Caves -7/Lower Caves -6/Factory -5/Factory (discovered 2 exits: Upp x2) -5/Waste -5/Factory (discovered 2 exits: *Upp x2) -5/Upper Caves -5/Upper Caves -5/Warlord -4/Proximity Caves History --------- Turn | Location | Event 20 | -11/Scrapyard | Discovered new exit (range 16) 50 | -11/Scrapyard | Entered Materials 142 | -10/Materials | Discovered new exit (range 13) 171 | -10/Materials | Discovered new exit (range 15) 191 | -10/Materials | Entered Mines 209 | -10/Mines | Met a Derelict testing a Signal Generator 261 | -10/Mines | Discovered new exit (range 14) 263 | -10/Mines | Learned Materials terminal intel 285 | -10/Mines | Entered Materials 285 | -9/Materials | Accompanied by 1 ally 285 | -9/Materials | Evolved 2 slots: Utility x2 286 | -9/Materials | Loaded intel: 12 terminal locations 327 | -9/Materials | Build established: Mutant 997 | -9/Materials | Identified exit to Mines 1055 | -9/Materials | Entered Mines 1063 | -9/Mines | Learned 4 Materials zone layouts 1075 | -9/Mines | Learned Materials emergency access door positions 1135 | -9/Mines | Met a Derelict bent on vengeance 1173 | -9/Mines | Identified exit to Materials 1241 | -9/Mines | Build established: Scavenger-Mutant 1288 | -9/Mines | Lost 3 parts (1n2u) 1499 | -9/Mines | Received a Mining Laser from a helpful Derelict 1553 | -9/Mines | Build established: Mutant 1617 | -9/Mines | A Derelict revealed a hidden shortcut to a safe place 1661 | -9/Mines | Learned Materials emergency access door positions 1667 | -9/Mines | Deemed a non-threat by the Exiles lab entrance 1668 | -9/Mines | Discovered new exit (range 5) 1672 | -9/Mines | Entered Exiles 1672 | -9/Exiles | Accompanied by 1 ally 1700 | -9/Exiles | Met 8R-AWN 1721 | -9/Exiles | Met EX-HEX 1754 | -9/Exiles | Met EX-BIN 1768 | -9/Exiles | Aligned with FarCom system 1769 | -9/Exiles | Given EX-Vault access code 1814 | -9/Exiles | Opened EX-Vault 1823 | -9/Exiles | Found Flying Fortress v7 1846 | -9/Exiles | Warned to stay clear of 0b10 Research branches 1887 | -9/Exiles | Met EX-DEC 2019 | -9/Exiles | Discovered new exit (range 12) 2032 | -9/Exiles | Left Exiles lab with Flying Fortress v7 2032 | -9/Exiles | Entered Mines 2092 | -8/Mines | Discovered exit to Materials (range 5) 2167 | -8/Mines | Entered Materials 2167 | -8/Materials | Evolved 2 slots: Propulsion x2 2168 | -8/Materials | Identified exit to Factory 2217 | -8/Materials | Garrison activated, responded to threat 2355 | -8/Materials | Met 7R-MNS 2483 | -8/Materials | Discovered exit to Factory (range 4) 2498 | -8/Materials | Entered Factory 2498 | -7/Factory | Evolved 2 slots: Utility x2 2499 | -7/Factory | Caught up to 7R-MNS 2541 | -7/Factory | Garrison activated, responded to threat 2750 | -7/Factory | Identified exit to Lower Caves 3001 | -7/Factory | Discovered new exit (range 5) 3007 | -7/Factory | Entered Lower Caves 3075 | -7/Lower Caves | Build established: Hacker-Mutant 3106 | -7/Lower Caves | Discovered new exit (range 7) 3146 | -7/Lower Caves | Entered another Lower Caves area 3150 | -7/Lower Caves | Learned 4 Factory zone layouts 3154 | -7/Lower Caves | Discovered new exit (range 4) 3179 | -7/Lower Caves | Entered Factory 3179 | -6/Factory | Evolved 2 slots: Utility x1, Weapon x1 3514 | -6/Factory | Build established: Hacker-Scout 3594 | -6/Factory | Found Launcher Loader 3595 | -6/Factory | Garrison activated, responded to threat 3691 | -6/Factory | Discovered new exit (range 3) 3692 | -6/Factory | Identified exit to Factory 3698 | -6/Factory | Entered another Factory area 3698 | -5/Factory | Evolved 2 slots: Power x1, Utility x1 3756 | -5/Factory | Identified exit to Upper Caves 4369 | -5/Factory | Spotted B-75 Beast 4377 | -5/Factory | Sucked down chute 4377 | -5/Factory | Entered Waste 4377 | -5/Waste | The area was eerily silent 4468 | -5/Waste | Discovered new exit (range 12) 4505 | -5/Waste | Identified exit to Factory 4506 | -5/Waste | Entered Factory 4887 | -5/Factory | Entered Upper Caves 5160 | -5/Upper Caves | Identified exit to Upper Caves 5192 | -5/Upper Caves | Learned Factory stockpile data 5226 | -5/Upper Caves | Entered another Upper Caves area 5228 | -5/Upper Caves | Attracted the attention of an 0b10 checkpoint 5395 | -5/Upper Caves | Discovered new exit (range 16) 5457 | -5/Upper Caves | Learned Factory trap positions 5466 | -5/Upper Caves | Identified exit to Warlord 5467 | -5/Upper Caves | Entered Warlord 5652 | -5/Warlord | Visited the Vortex Lab 5656 | -5/Warlord | Found Prototype Energy Gun 5656 | -5/Warlord | Identified Vortex Rifle 5664 | -5/Warlord | Warlord's base attacked by MAIN.C 5724 | -5/Warlord | Met Warlord 5828 | -5/Warlord | Opened side exit 6014 | -5/Warlord | Warlord forces counterattacked 6254 | -5/Warlord | Spotted Executioner 6339 | -5/Warlord | Warlord base infiltrated, sounded retreat 6470 | -5/Warlord | Crushed by falling debris 6471 | -5/Warlord | Crushed by falling debris 6471 | -5/Warlord | System corruption reached 10% 6477 | -5/Warlord | Crushed by falling debris 6508 | -5/Warlord | Lost 6 parts (1p1n4u) 6582 | -5/Warlord | Spotted Executioner 6587 | -5/Warlord | Spotted Striker 6589 | -5/Warlord | Released all parts (5) 6626 | -5/Warlord | Spotted Striker 6634 | -5/Warlord | Discovered new exit (range 12) 6639 | -5/Warlord | Entered Proximity Caves 6703 | -4/Proximity Caves | Learned location of Armory (-3) 6727 | -4/Proximity Caves | Attracted the attention of an 0b10 checkpoint 6740 | -4/Proximity Caves | Core integrity fell below 50% 6760 | -4/Proximity Caves | Core integrity fell below 20% 6761 | -4/Proximity Caves | Build established: Mutant 6761 | -4/Proximity Caves | Destroyed by D-63 Destroyer with Heavy Rocket Launcher Last Messages --------------- [Achievement: Charge!!!] LOCATION=UNKNOWN GOAL=ESCAPE 06647_ System corrupted: Heat flow error (+246). 06664_ System corrupted: Matter fused (-5). 06679_ System corrupted: Heat flow error (+153). 06689_ C7-CKS(k) breaks down the debris. 06701_ System corrupted: Matter fused (-8). 06703_ Acquired derelict log, extracted data. World map updated: -3/Armory. 06721_ Penetrated by Slug. 06721_ Slug penetrates Wall. 06722_ WTLBE>Y X #:JIWCV/6Y %I 6<2GIIJP 06726_ Critical hit (Burn: +37). 06726_ Penetrated by Slug. 06727_ Y-64 Sentinel: "INTERCEPTING UNREGISTERED DERELICT." 06737_ System corrupted: IFF burst signal emitted. 06760_ System corrupted: Component data lost. Map ----- +----------------------------------------------------+ | ?????????????????????????????????????????????????? | | ?????????????????????????????????????????????????? | | ?????????????????????????????????????????????????? | | ?????????????????????????????????????????????????? | | ?????????????????????????????????????????????????? | | ?????????????????????????????????????????????????? | | ?????????????????????????????????????????????????? | | ?????????????????????????????????????????????????? | | ?????????????????????????????????????????????????? | | ?????????????????????????????????????????????????? | | ??????????????????????? ?????????????????????? | | ????????????????????? di ???????????????????? | | ?????????????????? ????????????????? | | ???????????????? ??????????????? | | #????????????? ????????????? | | ##??????????? ????????????? | | #?????????? ???????????? | | #????????? ???????????? | | ???????? ??????????? | | #???????# ??????????? | | #???????# ??????????? | | #???????# ?????????? | | #???????# ?????????? | | ????????# i ????????? | | ????????# ????????? | | ???###### @ ????????? | | ???# < ????????? | | ?#?# d i ????????? | | ## # d ?????????? | | ?????????? | | ??????????? | | ??????????? | | ??????????? | | ???????????? | | #### ???????????? | | ???# ????????????? | | ???# ????????????? | | ???# ?????????????? | | ???# ??????????????? | | ???# d ???????????????? | | ???# ????????????????? | | ???# ?????????????????? | | ???# ??????????????????? | | ???################## ???????????????????? | | ????????????????????? ????????????????????? | | ?????????????????????######??????????????????????? | | ?????????????????????????????????????????????????? | | ?????????????????????????????????????????????????? | | ##?###???????????????????????????????????????????? | | ## ????????????????????????????????????????????? | +----------------------------------------------------+ Best States ------------- Heat Dissipation 51 Energy Generation 34 Energy Capacity 525 Matter Stores 300 Matter Capacity 300 Sight Range 22 Robot Scan Range 16 Terrain Scan Range 20 Terrain Scan Density 10 ECM Strength 2 Additional Mass Support 9 Armor Coverage 225 Propulsion Shielding 33 Utility Shielding 33 Evasion (%) 60 Recoil Reduction 4 Offensive Hacking 20 Defensive Hacking 10 Item Schematics ----------------- Lrg. Storage Unit | -9/Materials | Scanalyzed Adv. Beam Cannon | -9/Materials | Scanalyzed Thunder Leg | -5/Factory | Hacked Robot Schematics ------------------ None Fabricated ------------ Nothing Repaired ---------- Nothing Alien Tech Used ----------------- None Achievements -------------- A Powerful Ally? Charge!!! Slippery One Challenges ------------ None Game ------ Seed FluxGuidanceFlakker Manual? 0 Play Time 02:21:53 Cumulative 48.8 hours Start 2025.09.19 @ 12:21:13 End 2025.09.19 @ 14:52:20 Sessions 1 Manual Loads 0 Difficulty Rogue Special Mode None Game No. 31 Rogue 31 Adventurer 0 Explorer 0 Win Type - Total 0 Types 0/0/0/0/0/0/0/0/0/0 Lore% 13 Gallery% 31 Achievement% 30 Wizard Run 0 Options --------- Layout 1 ASCII 0 Keyboard 1 Movement Arrows Keybinds 0 Fullscreen 1 Font 24/Smallcaps Map View 50x35 Zoom Use 0% Tactical HUD 1 Map Filters NONE Filters NONE Steam 1 RUN: f5a3ebc9-66f9-4b88-84c4-38072ada70d8